[Event "Argentine Youth-Junior-ch 2025"]
[Site "Mar del Plata"]
[Date "2025.04.16"]
[Round "3.10"]
[White "Rodriguez, Elian Francisco"]
[Black "Panta, Joaquin"]
[Result "1-0"]
[Annotator "NA RC"]
[ECO "D36"]
[WhiteElo "2043"]
[BlackElo "1646"]
[PlyCount "71"]
[EventDate "2025.04.14"]
[EventType "swiss"]
[EventCountry "ARG"]
[SourceTitle "playchess.com"]
[Source "ChessBase"]
[SourceQuality "1"]
[TimeControl "3600+30"]

1. c4 {[%emt 0:00:30]} e6 {[%emt 0:00:30]} 2. Nc3 {[%emt 0:00:30]} d5 {[%emt 0:00:30]} 3. cxd5 {[%emt 0:00:19]} exd5 {[%emt 0:00:08]} 4. d4 {[%emt 0:00:06]} Nf6 {[%emt 0:00:18]} 5. Bg5 {[%emt 0:00:10]} c6 {[%emt 0:00:06]} 6. e3 {[%emt 0:00:10]} Bd6 {[%emt 0:00:08]} 7. Bd3 {[%emt 0:00:22]} Nbd7 {[%emt 0:00:36]} 8. Nf3 {[%emt 0:01:04]} O-O {[%emt 0:00:09]} 9. Qc2 {[%emt 0:00:16]} h6 {[%emt 0:00:09]} 10. Bh4 {[%emt 0:00:12]} Re8 {[%emt 0:00:24]} 11. O-O {[%emt 0:01:10]} Qc7 {[%emt 0:00:59]} 12. Rac1 {[%emt 0:01:35]} a6 {[%emt 0:00:33]} 13. a3 {[%emt 0:02:06]} b6 {[%emt 0:01:55]} 14. b4 {[%emt 0:02:40]} Bb7 {[%emt 0:00:23]} 15. e4 {[%emt 0:03:23]} Bf4 {[%emt 0:04:26]} 16. Bg3 {[%emt 0:00:43]} Bxg3 {[%emt 0:00:41]} 17. hxg3 {[%emt 0:00:07]} dxe4 {[%emt 0:01:22]} 18. Nxe4 {[%emt 0:00:02]} Rad8 {[%emt 0:00:33]} 19. Rfd1 {[%emt 0:03:38]} a5 {[%emt 0:02:04]} 20. b5 {[%emt 0:01:48]} Nxe4 {[%emt 0:01:53]} 21. Bxe4 {[%emt 0:00:07]} c5 {[%emt 0:00:15]} 22. Bf5 {[%emt 0:02:39]} Bxf3 {[%emt 0:02:06]} 23. gxf3 {[%emt 0:00:09]} Qb7 {[%emt 0:00:05]} 24. Bxd7 {[%emt 0:01:54]} Rxd7 {[%emt 0:00:29]} 25. dxc5 {[%emt 0:00:21]} Rxd1+ {[%emt 0:00:21]} 26. Qxd1 {[%emt 0:00:22]} bxc5 {[%emt 0:00:41]} 27. Rxc5 {[%emt 0:00:14]} Qb6 {[%emt 0:00:16]} 28. Qd5 {[%emt 0:00:21]} Qg6 {[%emt 0:01:23]} 29. Rc7 {[%emt 0:01:31]} Qf6 {[%emt 0:03:37]} 30. Kg2 {[%emt 0:02:30]} Rb8 {[%emt 0:04:36]} 31. a4 {[%emt 0:01:19]} Rd8 {[%emt 0:01:44]} 32. Qc6 {[%emt 0:01:40]} Qd4 {[%emt 0:01:38]} 33. b6 {[%emt 0:01:28]} Qb2 {[%emt 0:02:34]} 34. Rc8 {[%emt 0:00:37]} Qd4 {[%emt 0:02:23]} 35. Rxd8+ {[%emt 0:00:21]} Qxd8 {[%emt 0:00:19]} 36. Qc7 {[%emt 0:00:03]} 1-0